bitfinex-derivatives/quotes_BTCF0:USTF0_20250814
["timestamp","ask_amount","ask_price","bid_price","bid_amount"]
[1755151895846,1.01487754,122040.0,122030.0,0.87076902]
[1755151896047,1.12487754,122040.0,122030.0,0.78885952]
[1755151896241,1.12487754,122040.0,122030.0,0.01681091]
[1755151896842,0.2231029,122010.0,122000.0,0.2670046]
[1755151897042,0.5839029,122010.0,122000.0,1.03905629]
[1755151897344,0.5839029,122010.0,122000.0,0.97375719]
[1755151898156,0.5638629,122010.0,122000.0,1.38087461]
[1755151898343,0.5638629,122010.0,122000.0,0.97435719]
[1755151898644,0.5303129,122010.0,122000.0,0.97635719]
[1755151898947,0.1128829,122010.0,122000.0,1.38287461]
[1755151899751,0.5402329,122010.0,122000.0,0.21711719]
[1755151900050,0.5839029,122010.0,122000.0,0.97635719]
[1755151901150,0.5839029,122010.0,122000.0,0.97435719]
[1755151901846,0.5839029,122010.0,122000.0,0.97335719]
[1755151902046,0.5839029,122010.0,122000.0,0.97339719]
[1755151902351,0.5839029,122010.0,122000.0,0.97739719]
[1755151905054,0.5839029,122010.0,122000.0,0.97339719]
[1755151907558,1.10042032,122010.0,122000.0,0.1031464]
[1755151907754,1.10042032,122010.0,122000.0,0.77209284]
[1755151907950,1.10042032,122010.0,122000.0,0.75928]
[1755151908345,1.10042032,122010.0,121990.0,0.2458022]
[1755151908346,0.1385595,122000.0,121990.0,0.2670222]
[1755151908550,0.5839095,122000.0,121990.0,0.27983573]
[1755151908750,0.5839095,122000.0,121990.0,1.05192926]
[1755151909946,0.50198,122000.0,121990.0,1.05192926]
[1755151910152,0.03096,122000.0,121990.0,1.47467668]
[1755151910853,0.1128895,122000.0,121990.0,1.47467668]
[1755151912357,0.0819295,122000.0,121990.0,1.47467668]
[1755151912660,0.1128895,122000.0,121990.0,1.06815926]
[1755151912862,0.1128895,122000.0,121990.0,1.47467668]
[1755151914857,0.03096,122000.0,121990.0,1.47467668]
[1755151915052,0.44683,122010.0,122000.0,0.1190499]
[1755151915253,0.1679532,122010.0,122000.0,0.55119373]
[1755151915561,0.5287532,122010.0,122000.0,0.55119373]
[1755151915766,1.09761062,122010.0,122000.0,0.10755631]
[1755151915976,1.09761062,122010.0,122000.0,0.86683631]
[1755151916367,1.09761062,122010.0,122000.0,0.10755631]
[1755151916765,1.10061062,122010.0,122000.0,0.86679631]
[1755151917258,1.10061062,122010.0,122000.0,0.10755631]
[1755151917466,1.10061062,122010.0,122000.0,0.01281353]
[1755151917770,1.10061062,122010.0,122000.0,0.77205353]
[1755151917771,1.12233236,122010.0,122000.0,0.77205353]
[1755151918770,1.12233236,122010.0,122000.0,0.7848672]
[1755151919165,0.0819432,121980.0,121970.0,0.5246869]
[1755151919374,0.98763062,121980.0,121970.0,1.08402182]
[1755151919568,0.5811132,121980.0,121970.0,1.08402182]
[1755151919768,0.5811132,121980.0,121970.0,0.32478182]
[1755151919969,1.09763062,121980.0,121970.0,1.05219182]
[1755151920277,0.5811132,121980.0,121970.0,1.05219182]
[1755151920473,0.5811132,121980.0,121970.0,0.32478182]
[1755151920676,0.59762114,121980.0,121970.0,1.08398182]
[1755151920884,0.59762114,121980.0,121970.0,1.49049924]
[1755151921076,0.23682114,121980.0,121970.0,1.08398182]
[1755151921383,0.59762114,121980.0,121970.0,1.08398182]
[1755151922087,0.23682114,121980.0,121970.0,0.32478182]
[1755151922291,0.59762114,121980.0,121970.0,1.08406182]
[1755151922787,0.3014159,121980.0,121970.0,1.08406182]
[1755151923286,0.15487794,121980.0,121970.0,0.2991544]
[1755151923588,0.15587794,121980.0,121970.0,1.0583944]
[1755151924279,0.15687794,121980.0,121970.0,1.0583944]
[1755151924886,0.23882114,121980.0,121970.0,1.0583944]
[1755151925879,0.15687794,121980.0,121970.0,0.2991544]
[1755151926080,0.15687794,121980.0,121970.0,1.46491182]
[1755151927580,0.15687794,121980.0,121970.0,0.70567182]
[1755151927780,0.23882114,121980.0,121970.0,1.46487182]
[1755151927975,1.28159924,121980.0,121970.0,0.1034399]
[1755151928180,0.62690064,121980.0,121970.0,0.8944699]
[1755151928384,0.22038322,121980.0,121970.0,0.8944699]
[1755151928884,0.30376322,121980.0,121970.0,0.8944699]
[1755151929085,0.66456322,121980.0,121970.0,0.8944699]
[1755151929681,1.07108064,121980.0,121970.0,0.8944699]
[1755151929876,1.07108064,121980.0,121970.0,0.1352699]
[1755151930082,1.19108064,121980.0,121970.0,0.8625999]
[1755151930285,1.07108064,121980.0,121970.0,0.8625999]
[1755151930586,1.08982047,121980.0,121970.0,0.1352699]
[1755151930886,0.68330305,121980.0,121970.0,0.8944299]
[1755151931278,0.68330305,121980.0,121970.0,0.92006098]
[1755151932185,0.68330305,121980.0,121970.0,0.92006078]
[1755151932488,0.44425002,121980.0,121970.0,0.5674182]
[1755151932682,0.002,121980.0,121970.0,0.9282182]
[1755151932986,0.002,121980.0,121970.0,1.6873782]
[1755151933286,0.002,121980.0,121970.0,1.6913782]
[1755151933485,0.002,121980.0,121970.0,0.9322182]
[1755151933875,1.1651316,122010.0,122000.0,0.1352497]
[1755151934082,0.76369536,122010.0,122000.0,1.326558]
[1755151934275,0.76369536,122010.0,122000.0,0.92004058]
[1755151934486,0.76369536,122010.0,122000.0,0.16088058]
[1755151934686,0.77837745,122010.0,122000.0,0.92004058]
[1755151934887,0.0819278,122010.0,122000.0,1.60814088]
[1755151935089,0.1369178,122010.0,122000.0,1.60814088]
[1755151935484,0.2208465,122010.0,122000.0,1.60814088]
[1755151936581,0.23582073,122010.0,122000.0,1.60814088]
[1755151936982,0.29016073,122010.0,122000.0,1.60814088]
[1755151937586,0.01897423,122010.0,122000.0,1.60814088]
[1755151937790,0.10089733,122010.0,122000.0,1.60814088]
[1755151937996,0.18860733,122010.0,122000.0,1.60814088]
[1755151938386,0.20822733,122010.0,122000.0,1.52621118]
[1755151938592,0.61474475,122010.0,122000.0,1.52621118]
[1755151938891,0.61374475,122010.0,122000.0,1.52621118]
[1755151939595,0.74478475,122010.0,122000.0,0.52127088]
[1755151939784,0.74478475,122010.0,122000.0,1.28031088]
[1755151940093,0.74278475,122010.0,122000.0,1.26111088]
[1755151940286,0.74278475,122010.0,122000.0,0.07895088]
[1755151940493,0.74278475,122010.0,122000.0,0.01281544]
[1755151940792,1.26751276,122010.0,122000.0,0.01281544]
[1755151940994,1.74245546,122010.0,122000.0,0.01281544]
[1755151941189,0.1369265,121990.0,121980.0,1.11976]
[1755151941389,0.73682392,121990.0,121980.0,1.16440541]
[1755151941587,0.73682392,121990.0,121980.0,0.40544541]
[1755151941785,0.73682392,121990.0,121980.0,1.16440541]
[1755151942491,0.73682392,121990.0,121980.0,0.40544541]
[1755151942794,0.73682392,121990.0,121980.0,1.13357541]
[1755151943293,0.90077593,121990.0,121980.0,0.40644541]
[1755151943490,0.90077593,121990.0,121980.0,0.77277541]
[1755151943689,0.90077593,121990.0,121980.0,0.77877541]
[1755151944097,0.90077593,121990.0,121980.0,0.81188541]
[1755151944395,0.90077593,121990.0,121980.0,0.05192541]
[1755151944689,0.73682392,121990.0,121980.0,0.07355541]
[1755151944894,0.73682392,121990.0,121980.0,0.24989861]
[1755151945195,0.73682392,121990.0,121980.0,0.16795541]
[1755151945588,0.73682392,121990.0,121980.0,0.15514]
[1755151945980,0.73682392,121990.0,121980.0,0.13363]
[1755151946185,0.73682392,121990.0,121980.0,0.09569]
[1755151946887,0.75555845,121990.0,121980.0,0.09569]
[1755151947388,0.75555845,121990.0,121980.0,0.1776332]
[1755151948098,0.75555845,121990.0,121980.0,0.09569]
[1755151949097,0.75555845,121990.0,121980.0,0.1776331]
[1755151949298,0.75555845,121990.0,121980.0,0.09569]
[1755151949897,0.75555845,121990.0,121980.0,0.81966]
[1755151950397,0.34904103,121990.0,121980.0,0.81966]
[1755151950597,0.75555845,121990.0,121980.0,0.81966]
[1755151950990,0.75555845,121990.0,121980.0,0.06074]
[1755151951190,0.75555845,121990.0,121980.0,0.81562]
[1755151951793,0.75555845,121990.0,121980.0,0.85057]
[1755151952685,0.75555845,121990.0,121980.0,0.09169]
[1755151952885,0.75555845,121990.0,121980.0,0.85057]
[1755151953093,0.75555845,121990.0,121980.0,0.82843618]
[1755151953794,0.75555845,121990.0,121980.0,0.86338618]
[1755151953995,1.11635845,121990.0,121980.0,0.86338618]
[1755151954699,1.11635845,121990.0,121980.0,0.10450618]
[1755151955000,1.11635845,121990.0,121980.0,0.1045063]
[1755151956191,1.11635845,121990.0,121980.0,0.8633063]
[1755151956390,1.11635845,121990.0,121980.0,0.8673063]
[1755151957494,0.21595581,121990.0,121980.0,0.58728975]
[1755151957799,0.76724323,121990.0,121980.0,0.17677233]
[1755151958002,0.76724323,121990.0,121980.0,0.93553233]
[1755151958498,0.74851392,121990.0,121980.0,0.9227163]
[1755151959103,0.74851392,121990.0,121980.0,0.9012063]
[1755151959699,0.76724325,121990.0,121980.0,0.9012063]
[1755151960698,0.76724325,121990.0,121980.0,0.9227163]
[1755151960998,1.12804325,121990.0,121980.0,0.1045063]
[1755151961298,0.0819499,121970.0,121960.0,0.05574]
[1755151961499,0.2320166,121960.0,121950.0,0.04245861]
[1755151961703,1.11933402,121960.0,121950.0,0.03544824]
[1755151961901,0.2320233,121950.0,121940.0,0.40741]
[1755151962200,0.63854072,121950.0,121940.0,0.12858]
[1755151962401,0.63863533,121950.0,121940.0,0.88726]
[1755151963000,0.75863533,121950.0,121940.0,0.80529]
[1755151963197,1.11943533,121950.0,121940.0,0.80629]
[1755151963398,1.18555394,121950.0,121940.0,0.80629]
[1755151963602,1.06555394,121950.0,121940.0,0.85553]
[1755151963800,1.17555394,121950.0,121940.0,0.85553]
[1755151964004,1.17555394,121950.0,121940.0,0.9375]
[1755151964509,1.06555394,121950.0,121940.0,0.9375]
[1755151964899,0.65903652,121950.0,121940.0,0.93658]
[1755151965613,0.65903652,121950.0,121940.0,0.93654]
[1755151965902,1.06555394,121950.0,121940.0,0.85457]
[1755151966108,1.06555394,121950.0,121940.0,0.93654]
[1755151966510,1.06555394,121950.0,121940.0,0.9365]
[1755151967107,1.06555394,121950.0,121940.0,0.9405]
[1755151967308,0.65903652,121950.0,121940.0,0.9405]
[1755151967609,0.65903652,121950.0,121940.0,0.9365]
[1755151967812,0.24167652,121950.0,121940.0,0.9365]
[1755151968003,0.19829652,121950.0,121940.0,0.9365]
[1755151968209,0.19829652,121950.0,121940.0,1.34301742]
[1755151968605,0.19829672,121950.0,121940.0,1.70381742]
[1755151968806,0.19829672,121950.0,121940.0,0.9365]
[1755151969009,0.11633322,121950.0,121940.0,1.34301742]
[1755151969422,0.06621322,121950.0,121940.0,1.35583627]
[1755151969707,0.06621322,121950.0,121940.0,1.71663627]
[1755151970101,0.06621322,121950.0,121940.0,1.71667627]
[1755151970605,0.14817672,121950.0,121940.0,1.35587627]
[1755151971113,0.14817672,121950.0,121940.0,0.94935885]
[1755151971114,0.29823672,121950.0,121940.0,0.94935885]
[1755151971308,0.14817672,121950.0,121940.0,1.71663627]
[1755151971511,0.29823672,121950.0,121940.0,0.19067885]
[1755151971813,0.29823672,121950.0,121940.0,0.94931885]
[1755151972816,0.29823672,121950.0,121940.0,0.95331885]
[1755151973311,0.29823672,121950.0,121940.0,0.96613768]
[1755151973510,0.70475414,121950.0,121940.0,0.96613768]
[1755151973813,0.20475414,121950.0,121940.0,0.98073768]
[1755151974000,0.34904764,121950.0,121940.0,1.00384768]
[1755151974604,0.34904764,121950.0,121940.0,0.24120768]
[1755151974810,0.34904764,121950.0,121940.0,0.99980768]
[1755151975010,0.82984764,121950.0,121940.0,0.91783768]
[1755151975309,0.82984764,121950.0,121940.0,0.99980818]
[1755151975713,0.82984764,121950.0,121940.0,0.08535768]
[1755151976012,0.94063647,121950.0,121940.0,0.04990883]
[1755151976199,0.94063647,121950.0,121940.0,0.01381883]
[1755151976401,1.69919647,121950.0,121940.0,0.01382025]
[1755151977209,1.76328904,121950.0,121940.0,0.01382025]
[1755151978215,1.92729704,121950.0,121940.0,0.01382025]
[1755151978906,1.16873704,121950.0,121940.0,0.01382025]
[1755151979106,1.92733704,121950.0,121940.0,0.01382025]
[1755151979305,1.92733704,121950.0,121940.0,0.01382157]
[1755151979713,1.92833704,121950.0,121940.0,0.01382157]
[1755151980109,1.16973704,121950.0,121940.0,0.01382157]
[1755151980310,1.92833704,121950.0,121940.0,0.01382157]
[1755151980708,1.92833704,121950.0,121940.0,0.00281108]
[1755151981303,1.37150032,121950.0,121940.0,0.00281108]
[1755151981510,1.96605232,121950.0,121940.0,0.11784108]
[1755151981715,1.96605232,121950.0,121940.0,0.03890108]
[1755151982014,1.96609232,121950.0,121940.0,0.00281108]
[1755151982406,2.13010032,121950.0,121940.0,0.00281108]
[1755151982609,2.12010032,121950.0,121940.0,0.00281108]
[1755151982911,0.1443075,121930.0,121920.0,0.03709]
[1755151983117,1.90097375,121930.0,121920.0,0.03709]
[1755151983517,1.50321375,121930.0,121920.0,0.001]
[1755151983816,0.2363909,121910.0,121900.0,0.11765]
[1755151984015,1.12370832,121910.0,121900.0,0.01382337]
[1755151984320,1.11370832,121910.0,121900.0,0.001]
[1755151984513,1.00370832,121910.0,121900.0,0.001]
[1755151984707,1.11370832,121910.0,121900.0,0.03411]
[1755151985017,1.11370832,121910.0,121900.0,0.05568]
[1755151985616,1.87230832,121910.0,121900.0,0.02257]
[1755151986014,1.11370832,121910.0,121900.0,0.001]
[1755151986216,2.26173934,121910.0,121900.0,0.001]
[1755151986522,2.26173934,121910.0,121900.0,0.007]
[1755151986920,2.36925998,121910.0,121900.0,0.007]
[1755151987314,1.61069998,121910.0,121900.0,0.007]
[1755151987519,2.36925998,121910.0,121900.0,0.007]
[1755151987724,2.37025998,121910.0,121900.0,0.007]
[1755151987913,1.57797998,121910.0,121900.0,0.05283]
[1755151988115,1.57797998,121910.0,121900.0,0.2417376]
[1755151988116,1.85630192,121910.0,121900.0,0.2417376]
[1755151988318,1.85630192,121910.0,121900.0,0.15974]
[1755151988516,2.26281934,121910.0,121900.0,0.15974]
[1755151989119,1.85630192,121910.0,121900.0,0.2417376]
[1755151989320,2.26481934,121910.0,121900.0,0.15774]
[1755151989519,2.26381934,121910.0,121900.0,0.15374]
[1755151989719,2.26481934,121910.0,121900.0,0.15374]
[1755151990025,1.52154868,121910.0,121900.0,0.09454]
[1755151990212,1.52154868,121910.0,121900.0,0.07994]
[1755151990629,1.52154868,121910.0,121900.0,0.001]
[1755151990818,2.28018868,121910.0,121900.0,0.001]
[1755151991219,1.52154868,121910.0,121900.0,0.001]
[1755151991519,2.28018868,121910.0,121900.0,0.005]
[1755151992328,2.28018868,121910.0,121900.0,0.001]
[1755151992726,1.11503126,121910.0,121900.0,0.15374]
[1755151992922,0.75423126,121910.0,121900.0,0.24856236]
[1755151993119,1.16074868,121910.0,121900.0,0.16656476]
[1755151993428,1.16074868,121910.0,121900.0,0.24856236]
[1755151993627,0.75423126,121910.0,121900.0,0.2357376]
[1755151993820,1.16074868,121910.0,121900.0,0.15374]
[1755151994227,0.79994868,121910.0,121900.0,0.248562]
[1755151994733,0.29276934,121910.0,121900.0,0.248562]
[1755151994921,0.37476024,121910.0,121900.0,0.6679032]
[1755151995428,0.29276934,121910.0,121900.0,0.6679032]
[1755151995630,0.01836934,121910.0,121900.0,1.0287032]
[1755151996227,0.003,121910.0,121900.0,1.2427672]
[1755151996432,0.003,121910.0,121900.0,2.0014072]
[1755151997019,0.5247504,121940.0,121920.0,0.06043]
[1755151997219,0.4427719,121940.0,121930.0,0.64123492]
[1755151997430,0.4427719,121940.0,121930.0,1.01900568]
[1755151997726,0.4770019,121940.0,121930.0,1.01900568]
[1755151997916,0.5107219,121940.0,121930.0,1.01896568]
[1755151998121,0.5117219,121940.0,121930.0,1.01896568]
[1755151998322,0.5519519,121940.0,121930.0,0.26036568]
[1755151998533,1.00468932,121940.0,121930.0,1.01896568]
[1755151998729,1.00468932,121940.0,121930.0,0.17838818]
[1755151999228,1.00468932,121940.0,121930.0,0.26036568]
[1755151999433,1.00568932,121940.0,121930.0,0.26036568]
[1755151999628,1.02437558,121940.0,121930.0,0.26036568]
[1755151999831,0.61785816,121940.0,121930.0,0.26036568]
[1755152000535,0.64530164,121940.0,121930.0,0.26036568]
[1755152000833,0.28450164,121940.0,121930.0,0.26036568]
[1755152001624,0.28450164,121940.0,121930.0,0.26036209]
[1755152001827,0.26581538,121940.0,121930.0,0.26036209]
[1755152002429,1.05182932,121940.0,121930.0,0.17838459]
[1755152003525,1.05182932,121940.0,121930.0,0.26036209]
[1755152004034,1.05182932,121940.0,121930.0,0.24753769]
[1755152004241,0.6453119,121940.0,121930.0,0.26035833]
[1755152006833,1.05182932,121940.0,121930.0,0.26035833]
[1755152007029,1.05182932,121940.0,121930.0,0.02564083]
[1755152007234,1.16182932,121940.0,121930.0,0.02564083]
[1755152008840,1.92022932,121940.0,121930.0,0.02564083]
[1755152009441,1.92022932,121940.0,121930.0,0.10761833]
[1755152009637,1.16182932,121940.0,121930.0,0.21051833]
[1755152009837,1.16182932,121940.0,121930.0,0.10505083]
[1755152010040,1.16182932,121940.0,121930.0,0.02564083]
[1755152010231,1.16282932,121940.0,121930.0,0.02564083]
[1755152010434,1.92222932,121940.0,121930.0,0.02564083]
[1755152011244,1.16382932,121940.0,121930.0,0.02564083]
[1755152011745,1.92218932,121940.0,121930.0,0.02564083]
[1755152011937,1.16382932,121940.0,121930.0,0.02564083]
[1755152012343,1.92218932,121940.0,121930.0,0.02564083]
[1755152012541,1.5156719,121940.0,121930.0,0.02564083]
[1755152012740,1.92218932,121940.0,121930.0,0.02564083]
[1755152013040,1.16382932,121940.0,121930.0,0.02564083]
[1755152014339,1.16382932,121940.0,121930.0,0.01282019]
[1755152014541,0.7573119,121940.0,121930.0,0.19054769]
[1755152014740,0.7573119,121940.0,121930.0,0.25069769]
[1755152014936,0.3965119,121940.0,121930.0,0.25069769]
[1755152015244,0.18656336,121940.0,121930.0,0.67003586]
[1755152015635,0.26853416,121940.0,121930.0,0.67003586]
[1755152015843,0.28955416,121940.0,121930.0,0.26351844]
[1755152016042,0.28955416,121940.0,121930.0,0.20336844]
[1755152016248,0.69607158,121940.0,121930.0,0.26351844]
[1755152016541,0.69407158,121940.0,121930.0,0.26351844]
[1755152016839,0.28555416,121940.0,121930.0,0.26351835]
[1755152017048,0.28555416,121940.0,121930.0,0.26451835]
[1755152017440,0.28555416,121940.0,121930.0,0.26351835]
[1755152017648,0.28555416,121940.0,121930.0,0.26451835]
[1755152019542,0.26237416,121940.0,121930.0,0.65821539]
[1755152019748,0.20638416,121940.0,121930.0,0.67103553]
[1755152020049,0.02744348,121940.0,121930.0,1.03183553]
[1755152020249,0.3423363,121960.0,121940.0,0.4018084]
[1755152020451,0.320003,121960.0,121950.0,0.64438152]
[1755152020641,0.320003,121960.0,121950.0,1.41548199]
[1755152021345,0.320003,121960.0,121950.0,1.00896457]
[1755152021544,0.34732882,121960.0,121950.0,1.0217826]
[1755152021752,0.34832882,121960.0,121950.0,1.0217826]
[1755152022252,0.23054882,121960.0,121950.0,1.0217826]
[1755152022448,0.02832582,121960.0,121950.0,1.03082002]
[1755152022648,0.11028322,121960.0,121950.0,1.03082002]
[1755152022854,0.02832582,121960.0,121950.0,1.78906002]
[1755152023153,0.02732582,121960.0,121950.0,1.78906002]
[1755152023354,0.02732582,121960.0,121950.0,1.79006002]
[1755152023660,0.10928322,121960.0,121950.0,1.79006002]
[1755152024155,0.10928322,121960.0,121950.0,1.79002002]
[1755152024846,0.10828322,121960.0,121950.0,1.79002002]
[1755152029551,0.10828322,121960.0,121950.0,1.03182002]
[1755152029752,0.24334322,121960.0,121950.0,1.0225426]
[1755152029951,0.57443064,121960.0,121950.0,0.2645026]
[1755152030148,1.03168064,121960.0,121950.0,0.2645026]
[1755152030450,0.62516322,121960.0,121950.0,0.1825385]
[1755152030657,1.03168064,121960.0,121950.0,1.0225426]
[1755152031044,1.03168064,121960.0,121950.0,0.9405785]
[1755152031247,1.03168064,121960.0,121950.0,0.2645026]
[1755152031458,0.62616322,121960.0,121950.0,1.0215426]
[1755152032055,0.62516322,121960.0,121950.0,1.0215426]
[1755152032355,0.62616322,121960.0,121950.0,1.0215426]
[1755152033245,1.03268064,121960.0,121950.0,1.0215426]
[1755152033650,1.03268064,121960.0,121950.0,1.0215026]
[1755152033850,0.62616322,121960.0,121950.0,1.0215026]
[1755152034453,0.62616322,121960.0,121950.0,1.02150266]
[1755152035055,0.62616322,121960.0,121950.0,1.02550266]
[1755152035259,0.62616322,121960.0,121950.0,1.43202008]
[1755152035558,0.52971322,121960.0,121950.0,1.43202008]
[1755152035762,0.56672322,121960.0,121950.0,1.43202008]
[1755152036157,0.59958322,121960.0,121950.0,1.43202008]
[1755152036357,0.59958322,121960.0,121950.0,0.67402008]
[1755152036358,0.17915322,121960.0,121950.0,0.67402008]
[1755152036559,0.17915322,121960.0,121950.0,1.43198008]
[1755152036859,0.10928322,121960.0,121950.0,1.43198008]
[1755152037057,0.10928322,121960.0,121950.0,0.67402008]
[1755152037256,0.10928432,121960.0,121950.0,1.03482008]
[1755152037458,0.02732582,121960.0,121950.0,1.79274008]
[1755152037859,0.10928432,121960.0,121950.0,1.79274008]
[1755152038054,0.02732582,121960.0,121950.0,1.79274008]
[1755152038255,0.10928432,121960.0,121950.0,1.79274008]
[1755152038858,0.001,121960.0,121950.0,1.79274008]
[1755152039363,0.10929562,121960.0,121950.0,1.19481208]
[1755152039557,0.001,121960.0,121950.0,1.95273208]
[1755152040060,0.1199685,121960.0,121950.0,1.95269208]
[1755152040360,0.3011882,121970.0,121960.0,0.1759085]
[1755152040361,0.3922482,121970.0,121960.0,0.1759085]
[1755152040557,0.3922482,121970.0,121960.0,0.26367706]
[1755152040758,0.41988509,121970.0,121960.0,0.26367706]
[1755152041058,1.18720251,121970.0,121960.0,0.93959856]
[1755152041262,1.20593801,121970.0,121960.0,1.02155706]
[1755152042262,0.79942059,121970.0,121960.0,1.02155706]
[1755152042864,0.79942059,121970.0,121960.0,0.26367706]
[1755152043062,0.79942059,121970.0,121960.0,1.02151706]
[1755152044255,0.79942059,121970.0,121960.0,1.02551706]
[1755152044657,1.32593801,121970.0,121960.0,0.98746706]
[1755152045165,1.32593801,121970.0,121960.0,0.98746336]
[1755152045353,1.20593801,121970.0,121960.0,0.98746336]
[1755152045764,1.20593801,121970.0,121960.0,1.02551336]
[1755152046061,1.33593801,121970.0,121960.0,1.02551336]
[1755152046266,0.79942059,121970.0,121960.0,1.02551336]
[1755152046567,1.31593801,121970.0,121960.0,1.02551336]
[1755152048055,1.31593801,121970.0,121960.0,1.02551335]
[1755152049060,1.20593801,121970.0,121960.0,1.02551335]
[1755152052457,1.20593801,121970.0,121960.0,0.18571485]
[1755152052663,1.31593801,121970.0,121960.0,0.78731485]
[1755152052865,1.31593801,121970.0,121960.0,0.78331485]
[1755152053065,1.31593801,121970.0,121960.0,0.02563485]
[1755152053265,1.31593801,121970.0,121960.0,0.02563566]
[1755152053465,0.1756022,121940.0,121930.0,1.3931414]
[1755152053663,0.2538077,121940.0,121930.0,2.16360094]
[1755152053864,0.2538077,121940.0,121930.0,2.16360098]
[1755152054565,0.2538077,121940.0,121930.0,1.40596098]
[1755152054764,0.6146077,121940.0,121930.0,1.01051508]
[1755152054959,0.6146077,121940.0,121930.0,0.92853958]
[1755152055162,0.5958722,121940.0,121930.0,0.92853958]
[1755152055363,0.5126422,121940.0,121930.0,0.6633958]
[1755152055564,0.5126422,121940.0,121930.0,1.4210358]
[1755152055760,0.5126422,121940.0,121930.0,1.4190358]
[1755152056373,0.4797822,121940.0,121930.0,1.4190358]
[1755152056568,0.4797822,121940.0,121930.0,1.4150358]
[1755152056763,0.54670623,121940.0,121930.0,1.41503639]
[1755152057369,0.54670623,121940.0,121930.0,0.65739629]
[1755152057370,0.61889623,121940.0,121930.0,0.65739629]
[1755152057567,0.66279623,121940.0,121930.0,1.00851887]
[1755152057762,0.66279623,121940.0,121930.0,0.2390587]
[1755152057970,0.66279623,121940.0,121930.0,0.9966987]
[1755152059865,0.66279623,121940.0,121930.0,1.0095189]
[1755152060069,0.66279623,121940.0,121930.0,0.2518789]
[1755152060273,1.06931365,121940.0,121930.0,1.0095189]
[1755152060766,1.06931365,121940.0,121930.0,0.9275402]
[1755152060963,1.06931365,121940.0,121930.0,0.2518782]
[1755152061161,1.07031365,121940.0,121930.0,0.9275002]
[1755152061473,1.07031365,121940.0,121900.0,0.2881362]
[1755152061474,0.1531,121910.0,121900.0,0.2881362]
[1755152061666,0.5958914,121910.0,121900.0,0.30095811]
[1755152061866,0.5139,121910.0,121900.0,1.05855811]
[1755152062068,1.12240892,121910.0,121900.0,0.01382191]
[1755152062570,1.12240892,121910.0,121900.0,0.97656011]
[1755152062571,0.7158915,121910.0,121900.0,0.97656011]
[1755152062973,0.7158915,121910.0,121900.0,0.89456191]
[1755152063172,0.7158915,121910.0,121900.0,0.88174]
[1755152063367,1.12240892,121910.0,121900.0,0.88174]
[1755152063566,1.12240892,121910.0,121900.0,0.79845]
[1755152063766,1.12240892,121910.0,121900.0,0.001]
[1755152063970,1.12240892,121910.0,121900.0,0.0138236]
[1755152064182,1.12240892,121910.0,121900.0,0.7714236]
[1755152064880,1.12240892,121910.0,121900.0,0.7734236]
[1755152065081,1.12240892,121910.0,121900.0,0.8077836]
[1755152065267,1.12240892,121910.0,121900.0,0.9059536]
[1755152065466,1.12440892,121910.0,121900.0,0.16121766]
[1755152065677,1.12440892,121910.0,121900.0,0.02664815]
[1755152065875,1.12440892,121910.0,121900.0,0.03064815]
[1755152066081,1.88204892,121910.0,121900.0,0.01782406]
[1755152069282,1.4755315,121910.0,121900.0,0.01782406]
[1755152069480,1.88204892,121910.0,121900.0,0.01782406]
[1755152069675,1.88204892,121910.0,121900.0,0.01382406]
[1755152071174,1.12440892,121910.0,121900.0,0.01382406]
[1755152071376,1.88204892,121910.0,121900.0,0.01782406]
[1755152071674,1.88204892,121910.0,121900.0,0.01382406]
[1755152074174,1.88204892,121910.0,121900.0,0.0266488]
[1755152074485,1.88204892,121910.0,121900.0,0.0138246]
[1755152074682,1.88208892,121910.0,121900.0,0.0138246]
[1755152075282,1.4755715,121910.0,121900.0,0.02664922]
[1755152075476,1.12440892,121910.0,121900.0,0.02664924]
[1755152075677,1.88208892,121910.0,121900.0,0.02664924]
[1755152076182,1.88208892,121910.0,121900.0,0.02664964]
[1755152076781,1.12440892,121910.0,121900.0,0.12222964]
[1755152076976,1.88204892,121910.0,121900.0,0.16521964]
[1755152077281,1.88204892,121910.0,121900.0,0.12835964]
[1755152077675,1.88204892,121910.0,121900.0,0.10563964]
[1755152078075,1.88204892,121910.0,121900.0,0.03064964]
[1755152079382,1.90107267,121910.0,121900.0,0.03064964]
[1755152080575,1.90107267,121910.0,121900.0,0.01782482]
[1755152080771,1.90107267,121910.0,121900.0,0.03064944]
[1755152080976,1.90107267,121910.0,121900.0,0.02664944]
[1755152081782,1.90107267,121910.0,121900.0,0.01399044]
[1755152081986,1.90107267,121910.0,121900.0,0.013659]
[1755152082186,0.2383989,121900.0,121890.0,0.002]
[1755152082487,0.2384057,121890.0,121880.0,0.002]
[1755152082683,1.15474687,121890.0,121880.0,0.002]
[1755152084274,1.15474687,121890.0,121880.0,0.04925]
[1755152084476,1.15474687,121890.0,121880.0,0.15946]
[1755152084679,1.15474687,121890.0,121880.0,0.9171]
[1755152085186,1.15474687,121890.0,121880.0,0.9181]
[1755152085580,1.15474687,121890.0,121880.0,0.16046]
[1755152085777,1.15474687,121890.0,121880.0,0.06535]
[1755152085977,1.19487672,121890.0,121880.0,0.002]
[1755152087090,0.7883593,121890.0,121880.0,0.002]
[1755152087386,1.19487672,121890.0,121880.0,0.006]
[1755152088390,1.19487672,121890.0,121880.0,0.08744]
[1755152088588,1.19487672,121890.0,121880.0,0.1243]
[1755152088789,1.19487672,121890.0,121880.0,0.08744]
[1755152089087,1.19487672,121890.0,121880.0,0.06472]
[1755152090083,1.19487672,121890.0,121880.0,0.1515324]
[1755152090386,1.19487672,121890.0,121880.0,1.0031124]
[1755152090784,0.7883593,121890.0,121880.0,0.2454724]
[1755152090987,1.19487672,121890.0,121880.0,1.0030724]
[1755152091692,0.7883593,121890.0,121880.0,1.0030724]
[1755152092189,1.19487672,121890.0,121880.0,1.0030724]
[1755152092389,1.19487672,121890.0,121880.0,0.92106]
[1755152092984,1.19487672,121890.0,121880.0,0.16346]
[1755152093186,1.19487672,121890.0,121880.0,0.09971]
[1755152093385,1.19487672,121890.0,121880.0,0.7596]
[1755152093587,1.19487672,121890.0,121880.0,0.002]
[1755152094087,1.19487672,121890.0,121880.0,0.02765298]
[1755152094482,1.19487672,121890.0,121880.0,0.06236298]
[1755152094682,1.19487672,121890.0,121880.0,0.10693298]
[1755152095487,1.19487672,121890.0,121880.0,0.05028301]
[1755152097381,1.19487672,121890.0,121850.0,0.40651742]
[1755152097589,1.36036332,121860.0,121850.0,0.0256534]
[1755152097785,1.49938707,121860.0,121850.0,0.0256534]
[1755152098191,1.15851872,121860.0,121850.0,0.1865861]
[1755152098386,0.95649282,121860.0,121850.0,0.1890694]
[1755152098593,1.44509719,121860.0,121850.0,0.1890694]
[1755152098789,1.57509719,121860.0,121850.0,0.0128267]
[1755152098990,1.56976048,121860.0,121850.0,0.0138267]
[1755152099694,2.32728048,121860.0,121850.0,0.0138267]
[1755152099996,1.56976028,121860.0,121850.0,0.2059594]
[1755152100197,1.56976028,121860.0,121850.0,0.0138267]